Cogmind - Beta 14 @@@ ROGUE MODE // 2025.03.14 @ 22:09:27 Player: TryingToLearn Result: Destroyed by P-80 Master with Gamma Rifle Performance ------------- Evolutions (7) 3500 Regions Visited (15) 3000 Robots Destroyed (59) 295 Value Destroyed (1478) 1478 Prototype IDs (16) 320 Alien Tech Used (0) 0 Bonus (1371) 1371 TOTAL SCORE: 9964 Bonus ------- Triggered Max Security 1000 High Alert Combat Kills 32 Follower Combat Kills 39 Aligned with FarCom 300 Cogmind --------- Core Integrity 0/1300 Matter 118/300 Energy 16/100 System Corruption 9% Temperature Cool (0) Movement Hovering (70) Location -3/Testing Parts ------- > --- POWER (2) -------- (None) > --- PROPULSION (6) --- Improved Gyrokinetic Inverter > --- UTILITY (10) ----- Faulty Spectral Analyzer Transport Network Coupler Graphene Brace > --- WEAPON (3) ------- (None) > --- INVENTORY (5) ---- Myomer Leg Xenon Bombardment Thruster Q-thruster Q-thruster Improved Recalibrator Peak State ------------ > --- POWER ------------ Heavy Antimatter Reactor Particle Reactor > --- PROPULSION ------- Antigrav System Antigrav System Gyrokinetic Inverter Gyrokinetic Inverter Improved Antigrav System Nuclear Pulse Thruster > --- UTILITY ---------- Advanced Thermal Generator Improved Sensor Array Advanced Terrain Scanner Improved Terrain Scan Processor Transport Network Coupler Transmission Jammer ECM Suite Graphene Brace Drone Bay > --- WEAPON ----------- Quantum Rifle Hypervelocity Coil Gun Chainsword > --- INVENTORY -------- Light Fission Core Transport Network Coupler Improved Recalibrator Hypervelocity Coil Gun Chainsword [Rating: 108] Favorites ----------- Power Ion Engine Engine Ion Engine Power Core Light Nuclear Core Reactor Particle Reactor Propulsion Surge Thruster Leg Aluminum Leg Wheel Wheel Hover Unit Gravmag Array Flight Unit Surge Thruster Utility ECM Suite Device ECM Suite Storage Small Storage Unit Processor Improved Terrain Scan Processor Hackware System Shield Protection Light Armor Plating Weapon Chainsword Energy Gun EM Pulse Gun Energy Cannon Advanced Beam Cannon Ballistic Gun High-powered Shotgun Launcher Mini Smartbomb Launcher Special Weapon Remote Datajack Impact Weapon Hammer Slashing Weapon Chainsword Build | -11 -10 -10 -10 -9 -8 -7 -6 -5 -5 -5 -4 -4 -4 -3 -3 ------- Run | Yrd Mat Min Exi Min Mat Fac Fac Fac Upp Upp Fac Upp Upp Res Tes Slots Evolved 14 | . . . . . 4 2 2 2 . . 2 . . 2 . Power 1 | . . . . . . . . . . . 1 . . . . Propulsion 4 | . . . . . 2 2 . . . . . . . . . Utility 8 | . . . . . 2 . 2 2 . . . . . 2 . Weapon 1 | . . . . . . . . . . . 1 . . . . Parts Attached 143 | 5 10 5 2 2 49 7 9 3 5 1 14 10 . 13 8 Power 17 | 1 1 . . . 3 . 1 . . . 3 1 . 7 . Engine 4 | 1 1 . . . 2 . . . . . . . . . . Core 7 | . . . . . 1 . 1 . . . 3 1 . 1 . Reactor 6 | . . . . . . . . . . . . . . 6 . Propulsion 33 | 2 2 2 . . 12 1 2 2 . . 4 3 . 1 2 Treads . | . . . . . . . . . . . . . . . . Leg 2 | . 2 . . . . . . . . . . . . . . Wheel 4 | 2 . 2 . . . . . . . . . . . . . Hover 13 | . . . . . . . 2 2 . . 4 2 . 1 2 Flight 14 | . . . . . 12 1 . . . . . 1 . . . Utility 56 | . 5 1 2 1 21 3 4 1 2 1 5 5 . 2 3 Device 35 | . 1 . 1 . 15 1 3 1 2 1 3 5 . 1 1 Storage 4 | . 2 . 1 . . 1 . . . . . . . . . Processor 6 | . . . . . 2 . 1 . . . 1 . . 1 1 Hackware 2 | . . . . . . 1 . . . . 1 . . . . Protection 9 | . 2 1 . 1 4 . . . . . . . . . 1 Artifact . | . . . . . . . . . . . . . . . . Weapon 37 | 2 2 2 . 1 13 3 2 . 3 . 2 1 . 3 3 Energy Gun 10 | 2 1 1 . . 4 . . . . . . . . 1 1 Energy Cannon 1 | . . . . . 1 . . . . . . . . . . Ballistic Gun 7 | . . . . . 3 . . . . . 1 1 . 2 . Ballistic Cannon . | . . . . . . . . . . . . . . . . Launcher 6 | . . . . 1 3 . . . 1 . 1 . . . . Special Weapon 4 | . . 1 . . 1 1 1 . . . . . . . . Impact Weapon 1 | . 1 . . . . . . . . . . . . . . Slashing Weapon 8 | . . . . . 1 2 1 . 2 . . . . . 2 Piercing Weapon . | . . . . . . . . . . . . . . . . Special Melee Weapon . | . . . . . . . . . . . . . . . . Unidentified Prototypes 14 | . . . 1 . 5 . 1 . 1 . . . . 2 4 Corrupted Parts 2 | . . . . . 2 . . . . . . . . . . System Corruption 6 | . . . . . 6 . . . . . . . . . . Parts Lost 52 | . 3 3 . . 10 . 2 . . 2 8 2 1 18 3 Power 11 | . 1 . . . 2 . . . . . 1 1 1 5 . Propulsion 18 | . 1 1 . . 5 . 2 . . . 3 . . 5 1 Utility 14 | . . . . . 1 . . . . 2 3 1 . 6 1 Weapon 9 | . 1 2 . . 2 . . . . . 1 . . 2 1 Highest Loss Streak 16 | . 2 1 . . 6 . 2 . . 1 7 2 1 16 3 To Critical Strikes . | . . . . . . . . . . . . . . . . Average Slot Usage (%) 85 | . 94 96 100 100 87 92 86 80 84 86 80 89 . 60 34 Engine 5 | . 12 14 14 14 7 7 2 . . . . . . . . Core 2 | . . . . . . . 3 5 5 5 5 9 . . . Leg 4 | . 15 24 . . . . . . . . . . . . . Wheel 4 | . 12 2 28 28 4 . . . . . . . . . . Hover 8 | . . . . . . . 8 19 23 23 20 21 . 14 8 Flight 8 | . . . . . 25 38 17 1 . . . 1 . 2 . Device 15 | . 5 9 7 6 15 7 13 17 19 25 23 25 . 19 5 Storage 6 | . 13 14 14 14 6 6 6 5 5 1 . . . . . Processor 6 | . . . . . 7 7 12 11 11 11 9 10 . 10 11 Hackware 2 | . . . . . . 6 6 5 5 5 6 4 . . . Protection 2 | . 8 4 6 7 3 . . . . . . . . . 3 Energy Gun 3 | . 19 10 . . . 2 . . . . . . . 1 2 Ballistic Gun 2 | . . . . . 6 . . . . . . 7 . 4 . Launcher 1 | . . . . 11 2 . . . 1 . 2 . . . . Special Weapon 1 | . . . 14 2 . 3 4 5 3 . . . . . . Impact Weapon 4 | . 7 14 14 14 3 . . . . . . . . . . Slashing Weapon 3 | . . . . . . 8 7 5 5 11 10 7 . 1 1 Peak Build Rating 108 | 5 7 7 14 17 30 36 49 65 76 74 82 96 96 108 77 Average Rating 38 | 3 6 6 10 12 19 34 43 58 67 72 78 81 96 65 50 On Entrance 40 | . 5 7 7 14 10 29 36 42 65 74 69 82 96 91 26 Naked Turns . | . . . . . . . . . . . . . . . . Heaviest Build 56 | 9 17 17 21 24 31 14 16 16 19 19 39 51 51 56 24 Greatest Support 59 | 26 26 20 20 20 20 16 19 59 19 19 59 56 56 56 23 Greatest Overweight (x) 2 | . 1 1 1 1 2 . 1 . . . 2 1 . 1 1 Average Overweight (x) . | . . . . . . . . . . . . . . . . Largest Inventory Capacity 8 | 5 8 8 8 8 8 5 5 5 5 5 5 5 5 5 5 Average Capacity 6 | 5 7 8 8 8 7 5 5 5 5 5 5 5 5 5 5 Most Carried 8 | 5 8 8 8 8 8 5 5 5 5 5 5 5 4 5 5 Average Carried 5 | 2 7 7 8 7 6 4 4 4 4 4 4 4 4 4 5 Final Capacity 8 | 5 8 8 8 8 5 5 5 5 5 5 5 5 5 5 5 Final Carried 8 | 5 8 8 8 8 5 5 5 5 5 5 5 4 4 5 5 Class Distribution -------------------- 30% | Mutant 18% | Ninja 12% | Scavenger-Scout 11% | Infiltrator-Ninja 6% | Scavenger-Mutant 5% | Hacker-Ninja 4% | Scavenger-Sprinter 3% | Scout Dominant Class ---------------- Mutant | -10/Materials Mutant | -10/Mines Mutant | -10/Exiles Mutant | -9/Mines Scavenger-Scout | -8/Materials Scavenger-Sprinter | -7/Factory Ninja | -6/Factory Ninja | -5/Factory Ninja | -5/Upper Caves Ninja | -5/Upper Caves Ninja | -4/Factory Infiltrator-Ninja | -4/Upper Caves Infiltrator-Ninja | -4/Upper Caves Infiltrator-Ninja | -3/Research Scout | -3/Testing Resources | -11 -10 -10 -10 -9 -8 -7 -6 -5 -5 -5 -4 -4 -4 -3 -3 ----------- Run | Yrd Mat Min Exi Min Mat Fac Fac Fac Upp Upp Fac Upp Upp Res Tes Matter Collected 1757 | 250 90 40 . 40 579 . 68 . 236 76 83 221 . 4 70 Remotely . | . . . . . . . . . . . . . . . . Salvage Created 1725 | . 333 308 . 11 538 . 68 . . 76 227 90 . 74 . Parts 97 | . 14 10 . 3 32 . 9 . . 3 15 4 . 7 . Haulers Intercepted 2 | . 1 . . . 1 . . . . . . . . . . Recyclers Shooed 4 | . . 2 . . . . . . . . . . . 2 . Parts Field Recycled . | . . . . . . . . . . . . . . . . Retrieved Matter . | . . . . . . . . . . . . . . . . Parts Self-Destructed 6 | . . . . . . . . . . 2 . 4 . . . Prevented . | . . . . . . . . . . . . . . . . Kills | -11 -10 -10 -10 -9 -8 -7 -6 -5 -5 -5 -4 -4 -4 -3 -3 ------- Run | Yrd Mat Min Exi Min Mat Fac Fac Fac Upp Upp Fac Upp Upp Res Tes Combat Hostiles Destroyed 49 | . 8 8 . 3 18 . 2 . . 2 3 3 . 2 . Melee 13 | . 2 2 . . 1 . 2 . . 2 3 1 . . . Guns 14 | . 1 4 . . 6 . . . . . . 2 . 1 . Cannons 1 | . . . . . 1 . . . . . . . . . . AOE 15 | . 2 . . 3 9 . . . . . . . . 1 . Classes Destroyed 12 | . 4 1 . . 5 . . . . 1 1 . . . . Worker 3 | . . . . . 1 . 1 . . . 1 . . . . Builder 1 | . . . . . 1 . . . . . . . . . . Hauler 2 | . 1 . . . 1 . . . . . . . . . . Recycler 2 | . . . . . 2 . . . . . . . . . . Operator 1 | . . . . . . . . . . . 1 . . . . Watcher 1 | . 1 . . . . . . . . . . . . . . Swarmer 26 | . 3 3 . 3 11 . . . . 1 . 3 . 2 . Cutter 4 | . . . . . 2 . 2 . . . . . . . . Grunt 9 | . 5 3 . . 1 . . . . . . . . . . Sentry 6 | . . 2 . . 3 . . . . . 1 . . . . Hunter 1 | . . . . . 1 . . . . . . . . . . Programmer 3 | . . . . . . . . . . 1 2 . . . . Best Kill Streak 9 | . 3 2 . 3 9 . 1 . . 1 2 2 . 1 . Combat Bots Only 8 | . 3 2 . 3 8 . 1 . . 1 1 2 . 1 . Max Kills in Single Turn 4 | . 2 1 . 3 4 . 1 . . 1 1 1 . 1 . Gunslinging . | . . . . . . . . . . . . . . . . Exploded 4 | . 2 . . 3 4 . . . . . . . . 1 . Melee 1 | . 1 1 . . 1 . 1 . . 1 1 1 . . . Uniques/NPCs Destroyed . | . . . . . . . . . . . . . . . . Combat | -11 -10 -10 -10 -9 -8 -7 -6 -5 -5 -5 -4 -4 -4 -3 -3 -------- Run | Yrd Mat Min Exi Min Mat Fac Fac Fac Upp Upp Fac Upp Upp Res Tes Hostile Shots Fired 612 | . 51 57 . 1 103 . 9 . 12 41 58 50 4 175 51 Missed 229 | . 11 26 . . 38 . 2 . 7 15 28 17 2 60 23 Damage Taken 7187 | . 474 375 . 10 1122 . 125 . 113 452 885 465 26 2450 690 Core 2085 | . 43 82 . . 110 . 8 . 25 100 368 29 . 1077 243 Absorbed by Shields . | . . . . . . . . . . . . . . . . Core Remaining (%) 83 | 100 . . . 50 80 100 99 . . 87 . . 65 . . Volleys Fired 115 | . 23 21 . 1 45 1 . 1 . . 2 13 . 8 . Largest 3 | . 2 1 . 1 2 1 . 1 . . 1 2 . 3 . Hottest 164 | . 90 40 . 33 68 5 . 5 . . 80 70 . 164 . Shots Fired 157 | . 31 21 . 1 61 1 . 1 . . 2 21 . 18 . Gun 128 | . 31 21 . . 37 . . . . . . 21 . 18 . Cannon 5 | . . . . . 5 . . . . . . . . . . Launcher 18 | . . . . 1 15 . . . . . 2 . . . . Special 6 | . . . . . 4 1 . 1 . . . . . . . Kinetic 60 | . . . . . 27 . . . . . . 21 . 12 . Thermal 24 | . 9 . . . 9 . . . . . . . . 6 . Explosive 18 | . . . . 1 15 . . . . . 2 . . . . Electromagnetic 53 | . 22 21 . . 10 . . . . . . . . . . Robot Hit Streak 12 | . 10 12 . . 10 7 . 8 . . 10 12 . 3 . Robot Miss Streak 8 | . 1 3 . 1 8 . . . . . . 3 . 2 . Penetration Max 2 | . . . . . . . . . . . . . . 2 . Secondary Targets 1 | . . . . . 1 . . . . . . . . . . Max Gunslinging Chain 1 | . . . . . 1 . . . . . . . . . . Shots Hit Robots 171 | . 39 23 . . 46 1 9 1 . 8 17 16 . 11 . Core Hits 87 | . 11 8 . 3 33 . 3 . . 3 8 9 . 9 . Critical Kills 2 | . . 1 . . . . . . . . . 1 . . . Critical Parts Destroyed 10 | . . 3 . . 1 . . . . . . 4 . 2 . Critical Strikes 14 | . . 4 . . 2 . . . . . 1 5 . 2 . Destroy 7 | . . . . . . . . . . . . 5 . 2 . Smash 5 | . . 4 . . 1 . . . . . . . . . . Sever 2 | . . . . . 1 . . . . . 1 . . . . Melee Attacks 131 | . 18 29 . . 21 . 17 1 . 19 22 4 . . . Impact 61 | . 18 29 . . 14 . . . . . . . . . . Slashing 70 | . . . . . 7 . 17 1 . 19 22 4 . . . Piercing . | . . . . . . . . . . . . . . . . Sneak Attacks 11 | . 2 . . . 5 . 1 . . . 3 . . . . Combat Hostiles 1 | . . . . . 1 . . . . . . . . . . Follow-up Attacks 8 | . . . . . . . 4 . . 2 2 . . . . Damage Inflicted 5096 | . 821 424 . 128 1933 . 356 . . 303 691 186 . 254 . Guns 1259 | . 366 182 . . 359 . . . . . . 107 . 245 . Cannons 103 | . . . . . 103 . . . . . . . . . . Explosions 1337 | . 96 62 . 128 984 . . . . . 67 . . . . Melee 2356 | . 359 180 . . 455 . 356 . . 303 624 79 . . . Ramming 9 | . . . . . . . . . . . . . . 9 . Kinetic 496 | . . . . . 260 . . . . . . 107 . 129 . Thermal 486 | . 173 62 . . 135 . . . . . . . . 116 . Explosive 1179 | . . . . 128 984 . . . . . 67 . . . . Electromagnetic 570 | . 289 182 . . 99 . . . . . . . . . . Impact 899 | . 359 180 . . 360 . . . . . . . . . . Slashing 1457 | . . . . . 95 . 356 . . 303 624 79 . . . Piercing . | . . . . . . . . . . . . . . . . Highest Corruption 9 | . . . . . 6 . . . . 2 3 3 3 5 9 Average Corruption 3 | . . . . . 5 . . . . 1 2 3 3 2 5 Corruption Purged . | . . . . . . . . . . . . . . . . Corruption Blocked . | . . . . . . . . . . . . . . . . Effects 16 | . . . . . 3 . . . . 1 1 8 . 2 1 Message Errors 3 | . . . . . 1 . . . . 1 . 1 . . . Matter Fused 4 | . . . . . 1 . . . . . 1 2 . . . Heat Flow Errors 2 | . . . . . 1 . . . . . . 1 . . . Energy Discharges 1 | . . . . . . . . . . . . . . 1 . Parts Rejected 1 | . . . . . . . . . . . . 1 . . . Data Loss (minor) 4 | . . . . . . . . . . . . 2 . 1 1 Weapon Failures 1 | . . . . . . . . . . . . 1 . . . Overload Shots . | . . . . . . . . . . . . . . . . Overflow Damage 294 | . 37 80 . . 77 . 29 . . . 71 . . . . Projectiles . | . . . . . . . . . . . . . . . . Explosions 26 | . . 1 . . 25 . . . . . . . . . . Melee 268 | . 37 79 . . 52 . 29 . . . 71 . . . . Knockbacks 3 | . 3 . . . . . . . . . . . . . . Impact 3 | . 3 . . . . . . . . . . . . . . Kinetic . | . . . . . . . . . . . . . . . . Secondary . | . . . . . . . . . . . . . . . . Self-Inflicted Damage 164 | . 50 34 . . 76 . . . . . . . . 4 . Shots 5 | . 1 1 . . 3 . . . . . . . . . . Rammed 2 | . . . . . . . . . . . . . . 2 . Targets Rammed 2 | . . . . . . . . . . . . . . 2 . Kicked . | . . . . . . . . . . . . . . . . Crushed . | . . . . . . . . . . . . . . . . Highest Temperature 438 | . 330 27 . . 438 2 . . . . 37 279 18 369 3 Average Temperature 83 | . 161 12 . . 117 2 . . . . 12 76 13 87 3 Received Heat Transfer 648 | . 159 84 . . 108 . . . 36 . 54 . . 90 117 Effects 3 | . 1 . . . 2 . . . . . . . . . . Energy Bleed 2 | . . . . . 2 . . . . . . . . . . Interference 1 | . 1 . . . . . . . . . . . . . . Siege Activations . | . . . . . . . . . . . . . . . . Robots Corrupted 7 | . 3 2 . . 2 . . . . . . . . . . Combat Hostiles 6 | . 3 2 . . 1 . . . . . . . . . . Parts Fried 10 | . 5 3 . . 2 . . . . . . . . . . Impact Corruptions 11 | . 4 4 . . 3 . . . . . . . . . . Robots Melted . | . . . . . . . . . . . . . . . . Combat Hostiles . | . . . . . . . . . . . . . . . . Parts Melted 1 | . 1 . . . . . . . . . . . . . . Heat Transferred 916 | . 322 150 . . 296 . . . . . . . . 148 . Parts Sabotaged 5 | . . . . . . . . . . . . . . . 5 Parts Stolen . | . . . . . . . . . . . . . . . . Parts Stripped . | . . . . . . . . . . . . . . . . Power Chain Reactions 3 | . 1 2 . . . . . . . . . . . . . Alert | -11 -10 -10 -10 -9 -8 -7 -6 -5 -5 -5 -4 -4 -4 -3 -3 ------- Run | Yrd Mat Min Exi Min Mat Fac Fac Fac Upp Upp Fac Upp Upp Res Tes Peak Influence 1735 | . 263 300 . 69 594 238 153 91 . . 95 . . 70 1735 Initial 238 | . . 102 . . 26 238 116 74 . . 65 . . 40 13 Average 156 | . 84 190 . 11 123 238 137 87 . . 44 . . 27 1667 Maximum Alert Level 5 | . 1 1 . . 2 1 . . . . . . . . 5 Low Security (%) 80 | 100 86 60 . 100 77 . 100 100 . . 100 . . 100 . Level 1 12 | . 13 40 . . 9 100 . . . . . . . . . Level 2 4 | . . . . . 13 . . . . . . . . . . Level 3 . | . . . . . . . . . . . . . . . . Level 4 . | . . . . . . . . . . . . . . . . Level 5 . | . . . . . . . . . . . . . . . . High Security . | . . . . . . . . . . . . . . . . Max Security 3 | . . . . . . . . . . . . . . . 99 Squads Dispatched 19 | . . . . . 7 . 1 1 . . 4 . . . 6 Investigation 1 | . . . . . . . . . . . 1 . . . . Extermination 2 | . . . . . . . . 1 . . 1 . . . . Reinforcement 7 | . . . . . 4 . 1 . . . 2 . . . . Assault 8 | . . . . . 2 . . . . . . . . . 6 Garrison 1 | . . . . . 1 . . . . . . . . . . Intercept . | . . . . . . . . . . . . . . . . Searches Triggered . | . . . . . . . . . . . . . . . . Construction Impeded . | . . . . . . . . . . . . . . . . Haulers Reinforced . | . . . . . . . . . . . . . . . . Active Scanning Responses . | . . . . . . . . . . . . . . . . Cargo Convoy Interrupts . | . . . . . . . . . . . . . . . . Stealth | -11 -10 -10 -10 -9 -8 -7 -6 -5 -5 -5 -4 -4 -4 -3 -3 --------- Run | Yrd Mat Min Exi Min Mat Fac Fac Fac Upp Upp Fac Upp Upp Res Tes Distress Signals 17 | . 1 1 . . 13 . 1 . . . . . . 1 . Communications Jammed 6 | . . . . . . . . . . . 6 . . . . Distress Signals 6 | . . . . . . . . . . . 6 . . . . Times Spotted 171 | . 13 19 . 2 43 . 4 . 3 8 10 6 4 17 42 Peak Tracking Total 27 | . 4 5 . 3 8 . 3 1 3 5 3 3 4 8 27 Tactical Retreats 32 | . . 4 . . 11 . 1 . 2 1 3 2 . 4 4 Traps | -11 -10 -10 -10 -9 -8 -7 -6 -5 -5 -5 -4 -4 -4 -3 -3 ------- Run | Yrd Mat Min Exi Min Mat Fac Fac Fac Upp Upp Fac Upp Upp Res Tes Traps Triggered 3 | . . . . . . 1 . . . . 1 . . 1 . Indirectly . | . . . . . . . . . . . . . . . . Trap Hack Attempts . | . . . . . . . . . . . . . . . . Triggered . | . . . . . . . . . . . . . . . . Disarmed . | . . . . . . . . . . . . . . . . Reprogrammed . | . . . . . . . . . . . . . . . . Reused . | . . . . . . . . . . . . . . . . Traps Extracted . | . . . . . . . . . . . . . . . . Installed . | . . . . . . . . . . . . . . . . Triggered 1 | . . . . . . . . . . . . 1 . . . Machines | -11 -10 -10 -10 -9 -8 -7 -6 -5 -5 -5 -4 -4 -4 -3 -3 ---------- Run | Yrd Mat Min Exi Min Mat Fac Fac Fac Upp Upp Fac Upp Upp Res Tes Machines Disabled 4 | . . . . . 4 . . . . . . . . . . Max in Single Turn 1 | . . . . . 1 . . . . . . . . . . Garrison Access 1 | . . . . . 1 . . . . . . . . . . Machines Repaired . | . . . . . . . . . . . . . . . . Machines Dismantled . | . . . . . . . . . . . . . . . . Machines Sabotaged . | . . . . . . . . . . . . . . . . Overloaded Fab Kills . | . . . . . . . . . . . . . . . . Hacking | -11 -10 -10 -10 -9 -8 -7 -6 -5 -5 -5 -4 -4 -4 -3 -3 --------- Run | Yrd Mat Min Exi Min Mat Fac Fac Fac Upp Upp Fac Upp Upp Res Tes Machines Accessed 26 | . 5 . . 1 6 1 1 3 1 . 6 . . 2 . Terminals 15 | . 4 . . . 3 . 1 1 . . 5 . . 1 . Fabricators . | . . . . . . . . . . . . . . . . Repair Stations 1 | . . . . . 1 . . . . . . . . . . Recycling Units 4 | . 1 . . . 1 1 . 1 . . . . . . . Scanalyzers 2 | . . . . . . . . . . . 1 . . 1 . Garrison Access 2 | . . . . . 1 . . 1 . . . . . . . Total Hacks 61 | . 16 . . 1 12 2 3 7 1 . 16 . . 3 . Successful 29 | . 8 . . 1 6 2 1 1 1 . 9 . . . . Failed 32 | . 8 . . . 6 . 2 6 . . 7 . . 3 . Catastrophic 5 | . . . . . 1 . 1 1 . . 2 . . . . Database Lockouts . | . . . . . . . . . . . . . . . . Manual 29 | . 15 . 1 . 5 . . . . . 8 . . . . Terminals 36 | . 15 . . . 7 . 3 1 . . 9 . . 1 . Fabricators . | . . . . . . . . . . . . . . . . Repair Stations 3 | . . . . . 3 . . . . . . . . . . Recycling Units 7 | . 1 . . . 1 2 . 3 . . . . . . . Scanalyzers 9 | . . . . . . . . . . . 7 . . 2 . Garrison Access 4 | . . . . . 1 . . 3 . . . . . . . Terminal Hacks 7 | . 2 . . 1 1 . 1 . 1 . 1 . . . . Prototype ID Bank 1 | . . . . . . . 1 . . . . . . . . Open Door 2 | . . . . 1 . . . . 1 . . . . . . Open DSF 1 | . . . . . . . . . . . 1 . . . . Branch Access Points 1 | . 1 . . . . . . . . . . . . . . Hauler Manifests 1 | . 1 . . . . . . . . . . . . . . Zone Layout 1 | . . . . . 1 . . . . . . . . . . Fabricator Hacks . | . . . . . . . . . . . . . . . . Repair Station Hacks 1 | . . . . . 1 . . . . . . . . . . Scan Component 1 | . . . . . 1 . . . . . . . . . . Recycling Unit Hacks 5 | . 1 . . . 1 2 . 1 . . . . . . . Process 1 | . . . . . . 1 . . . . . . . . . Report Inventory 4 | . 1 . . . 1 1 . 1 . . . . . . . Scanalyzer 7 | . . . . . . . . . . . 7 . . . . Insert Component 4 | . . . . . . . . . . . 4 . . . . Analyze 3 | . . . . . . . . . . . 3 . . . . Garrison Access Hacks 1 | . . . . . 1 . . . . . . . . . . Seal Access 1 | . . . . . 1 . . . . . . . . . . Unauthorized Hacks 8 | . 5 . . . 2 . . . . . 1 . . . . Terminals 8 | . 5 . . . 2 . . . . . 1 . . . . Assimilate 2 | . 1 . . . 1 . . . . . . . . . . Botnet 6 | . 4 . . . 1 . . . . . 1 . . . . Fabricators . | . . . . . . . . . . . . . . . . Repair Stations . | . . . . . . . . . . . . . . . . Recycling Units . | . . . . . . . . . . . . . . . . Scanalyzers . | . . . . . . . . . . . . . . . . Garrison Access . | . . . . . . . . . . . . . . . . Data Cores Recovered . | . . . . . . . . . . . . . . . . Used . | . . . . . . . . . . . . . . . . Hacking Detections 17 | . 2 . . . 3 1 1 3 . . 5 . . 2 . Full Trace Events 1 | . 1 . . . . . . . . . . . . . . Feedback Events . | . . . . . . . . . . . . . . . . Feedback Blocked . | . . . . . . . . . . . . . . . . Robot Schematics Acquired . | . . . . . . . . . . . . . . . . Robots Built . | . . . . . . . . . . . . . . . . Authchips . | . . . . . . . . . . . . . . . . Time . | . . . . . . . . . . . . . . . . Total Robot Build Rating . | . . . . . . . . . . . . . . . . Part Schematics Acquired 1 | . . . . . . . . . . . 1 . . . . Parts Built . | . . . . . . . . . . . . . . . . Authchips . | . . . . . . . . . . . . . . . . Time . | . . . . . . . . . . . . . . . . Total Part Build Rating . | . . . . . . . . . . . . . . . . Parts Repaired . | . . . . . . . . . . . . . . . . Time . | . . . . . . . . . . . . . . . . Parts Recycled . | . . . . . . . . . . . . . . . . Recycled Matter 20 | . . . . . . 20 . . . . . . . . . Retrieved Matter . | . . . . . . . . . . . . . . . . Retrieved Components . | . . . . . . . . . . . . . . . . Parts Scanalyzed 3 | . . . . . . . . . . . 3 . . . . Part Schematics Acquired 1 | . . . . . . . . . . . 1 . . . . Parts Damaged . | . . . . . . . . . . . . . . . . Bothacking | -11 -10 -10 -10 -9 -8 -7 -6 -5 -5 -5 -4 -4 -4 -3 -3 ------------ Run | Yrd Mat Min Exi Min Mat Fac Fac Fac Upp Upp Fac Upp Upp Res Tes Used RIF Installer . | . . . . . . . . . . . . . . . . Robots Hacked 2 | . . . . . . 1 . 1 . . . . . . . Non-combat 2 | . . . . . . 1 . 1 . . . . . . . Combat . | . . . . . . . . . . . . . . . . Robot Hacks Applied 2 | . . . . . . 1 . 1 . . . . . . . parse_system 1 | . . . . . . . . 1 . . . . . . . find_chute 1 | . . . . . . 1 . . . . . . . . . Relay Couplers Released . | . . . . . . . . . . . . . . . . Fabnet Peak Effective % . | . . . . . . . . . . . . . . . . Robots Rewired . | . . . . . . . . . . . . . . . . Allies Hacked . | . . . . . . . . . . . . . . . . Hacks Repelled . | . . . . . . . . . . . . . . . . Allies | -11 -10 -10 -10 -9 -8 -7 -6 -5 -5 -5 -4 -4 -4 -3 -3 -------- Run | Yrd Mat Min Exi Min Mat Fac Fac Fac Upp Upp Fac Upp Upp Res Tes Total Allies 2 | . . 1 . . 1 . . . . . . . . . . Largest Group 1 | . . 1 . . 1 . . . . . . . . . . Highest-Rated Group 31 | . . 31 . . 10 . . . . . . . . . . Highest-Rated Ally 31 | . . 31 . . 10 . . . . . . . . . . Total Orders 3 | . . . . . 1 . . . . . . 2 . . . FOLLOW 1 | . . . . . 1 . . . . . . . . . . EXPLORE 2 | . . . . . . . . . . . . 2 . . . Ally Attacks 15 | . . 15 . . . . . . . . . . . . . Total Damage 189 | . . 189 . . . . . . . . . . . . . Kills 3 | . . 3 . . . . . . . . . . . . . Allies Corrupted . | . . . . . . . . . . . . . . . . Allies Melted . | . . . . . . . . . . . . . . . . Intel | -11 -10 -10 -10 -9 -8 -7 -6 -5 -5 -5 -4 -4 -4 -3 -3 ------- Run | Yrd Mat Min Exi Min Mat Fac Fac Fac Upp Upp Fac Upp Upp Res Tes Robot Analysis Total . | . . . . . . . . . . . . . . . . Derelict Logs Recovered 4 | . . 1 . . . . . . 3 . . . . . . Drone Launches 18 | . . . . . 16 . . . . . . 2 . . . Drone Recoveries 2 | . . . . . . . . . . . . 2 . . . Exploration | -11 -10 -10 -10 -9 -8 -7 -6 -5 -5 -5 -4 -4 -4 -3 -3 ------------- Run | Yrd Mat Min Exi Min Mat Fac Fac Fac Upp Upp Fac Upp Upp Res Tes Turns Passed 6304 | 53 533 685 232 227 1606 158 321 252 397 63 955 282 3 356 181 Spaces Moved 6414 | 46 302 443 264 255 1420 350 572 405 751 38 584 307 7 461 209 Core 1 | 1 . . . . . . . . . . . . . . . Treads . | . . . . . . . . . . . . . . . . Legs 531 | . 162 369 . . . . . . . . . . . . . Wheels 1091 | 45 140 74 264 255 313 . . . . . . . . . . Hover 3016 | . . . . . . . 254 405 751 38 584 307 7 461 209 Flight 1775 | . . . . . 1107 350 318 . . . . . . . . Fastest Speed 24 | 50 90 80 80 80 27 24 24 45 51 51 45 48 48 48 66 Average Speed 58 | 89 106 114 86 86 43 24 36 50 51 51 50 53 48 61 75 Slowest Speed 190 | 100 120 190 95 95 120 24 110 51 51 51 160 108 48 110 110 Overloaded Moves . | . . . . . . . . . . . . . . . . Propulsion Burnouts . | . . . . . . . . . . . . . . . . Robots Hopped 18 | . . . . . 16 . 2 . . . . . . . . Cave-ins Triggered . | . . . . . . . . . . . . . . . . Exploration Rate (%) 36 | 4 57 77 62 67 73 9 9 15 82 4 10 57 4 16 36 Regions Visited 15 Branch Regions 8 Pre-discovered Areas . | . . . . . . . . . . . . . . . . Known Exits Taken 2 | . 1 . . . . . . . 1 . . . . . . Unknown Exits Taken 13 | 1 . 1 1 1 1 1 1 1 . 1 1 1 1 1 . Scrap Searched 8 | . . 1 . 1 . . . . 4 . . 2 . . . Spaces Dug 35 | . . 6 . . 25 . 1 1 . 2 . . . . . Terrain Destroyed 230 | . 4 17 . 13 163 . 1 1 . 2 27 2 . . . Melee 11 | . . 6 . . 1 . 1 1 . 2 . . . . . Projectile . | . . . . . . . . . . . . . . . . AOE 217 | . 4 11 . 13 162 . . . . . 27 . . . . Terrain Rammed . | . . . . . . . . . . . . . . . . Walls Destroyed . | . . . . . . . . . . . . . . . . Machines Disabled . | . . . . . . . . . . . . . . . . Actions | -11 -10 -10 -10 -9 -8 -7 -6 -5 -5 -5 -4 -4 -4 -3 -3 --------- Run | Yrd Mat Min Exi Min Mat Fac Fac Fac Upp Upp Fac Upp Upp Res Tes Total 8588 | 55 453 550 267 261 2288 422 658 452 764 56 1212 396 6 519 229 Wait 1644 | . 80 45 . . 725 40 57 23 . 1 586 57 . 19 11 Move 6364 | 45 301 442 263 254 1388 349 567 404 750 37 583 306 6 460 209 Hop 17 | . . . . . 15 . 2 . . . . . . . . Pick Up 64 | 5 11 4 . 1 13 2 5 10 3 1 4 . . 5 . Fast Attach 85 | 5 5 3 1 1 26 4 4 2 2 . 9 6 . 9 8 Attach 38 | . 2 1 . . 15 2 3 1 2 1 5 2 . 4 . Detach 21 | . . . . . 9 2 1 . . . 2 2 . 5 . Swap 20 | . 3 1 1 1 8 1 2 . 1 . . 2 . . . Drop 73 | . 10 4 2 3 23 3 4 10 4 . 2 1 . 7 . Fire 115 | . 23 21 . 1 45 1 . 1 . . 2 13 . 8 . Melee 120 | . 18 29 . . 21 . 13 1 . 16 19 3 . . . Ram 2 | . . . . . . . . . . . . . . 2 . Kick . | . . . . . . . . . . . . . . . . Crush . | . . . . . . . . . . . . . . . . Escape Stasis 18 | . . . . . . 18 . . . . . . . . . Rewire 7 | . . . . . . . . . 2 . . 4 . . 1 Trap . | . . . . . . . . . . . . . . . . Miscellaneous . | . . . . . . . . . . . . . . . . Route ------- -11/Scrapyard -10/Materials (discovered 2 exits: [*Mat] / *Min) -10/Mines (discovered 3 exits: [*Mat x2] / *Exi) -10/Exiles -9/Mines -8/Materials (discovered 3 exits: *Fac x3) -7/Factory (discovered 2 exits: *Fac / [*Low]) -6/Factory -5/Factory -5/Upper Caves -5/Upper Caves -4/Factory -4/Upper Caves -4/Upper Caves -3/Research -3/Testing History --------- Turn | Location | Event 15 | -11/Scrapyard | Discovered new exit (range 16) 54 | -11/Scrapyard | Entered Materials 315 | -10/Materials | Build established: Mutant 368 | -10/Materials | Identified exit to Mines 501 | -10/Materials | Discovered new exit (range 16) 587 | -10/Materials | Entered Mines 590 | -10/Mines | Received a Mining Laser from a helpful Derelict 990 | -10/Mines | Discovered new exit (range 7) 1064 | -10/Mines | Excavation squad dispatched 1064 | -10/Mines | A large section of the Mines collapsed 1135 | -10/Mines | Learned Materials stockpile data 1139 | -10/Mines | Discovered new exit (range 3) 1267 | -10/Mines | Deemed a non-threat by the Exiles lab entrance 1268 | -10/Mines | Discovered new exit (range 5) 1272 | -10/Mines | Entered Exiles 1291 | -10/Exiles | Met 8R-AWN 1305 | -10/Exiles | Met EX-HEX 1339 | -10/Exiles | Met EX-DEC 1353 | -10/Exiles | Met EX-BIN 1363 | -10/Exiles | Aligned with FarCom system 1364 | -10/Exiles | Given EX-Vault access code 1385 | -10/Exiles | Opened EX-Vault 1389 | -10/Exiles | Found Prototype Device 1389 | -10/Exiles | Identified Cloak of Protection 1412 | -10/Exiles | Warned to stay clear of 0b10 Research branches 1493 | -10/Exiles | Discovered new exit (range 12) 1504 | -10/Exiles | Left Exiles lab with Cloak of Protection 1504 | -10/Exiles | Entered Mines 1508 | -9/Mines | Found the Drone Emporium 1513 | -9/Mines | Found Prototype Device 1538 | -9/Mines | Received a Rocket Launcher from a helpful Derelict 1723 | -9/Mines | Discovered new exit (range 10) 1731 | -9/Mines | Entered Materials 1731 | -8/Materials | Evolved 4 slots: Propulsion x2, Utility x2 1746 | -8/Materials | Identified Decoy Drone Bay 1948 | -8/Materials | Discovered new exit (range 60) 1957 | -8/Materials | Discovered new exit (range 63) 1964 | -8/Materials | Lost 3 parts (1p1n1u) 1972 | -8/Materials | Discovered new exit (range 74) 2272 | -8/Materials | Build established: Scavenger-Mutant 2666 | -8/Materials | Build established: Scavenger-Scout 2898 | -8/Materials | Destroyed 8 combat bots 3201 | -8/Materials | Lost 6 parts (1p3n2w) 3331 | -8/Materials | First assault squad dispatched 3337 | -8/Materials | Entered Factory 3337 | -7/Factory | Evolved 2 slots: Propulsion x2 3478 | -7/Factory | Build established: Scavenger-Sprinter 3486 | -7/Factory | Discovered new exit (range 18) 3488 | -7/Factory | Discovered new exit (range 6) 3495 | -7/Factory | Entered another Factory area 3495 | -6/Factory | Evolved 2 slots: Utility x2 3786 | -6/Factory | Discovered new exit (range 4) 3816 | -6/Factory | Entered another Factory area 3816 | -5/Factory | Evolved 2 slots: Utility x2 3962 | -5/Factory | Build established: Ninja 4057 | -5/Factory | Discovered new exit (range 18) 4061 | -5/Factory | Found Prototype Launcher 4068 | -5/Factory | Entered Upper Caves 4070 | -5/Upper Caves | Attracted the attention of an 0b10 checkpoint 4245 | -5/Upper Caves | Learned location of 1 exit from Proximity Caves 4303 | -5/Upper Caves | Identified exit to Upper Caves 4316 | -5/Upper Caves | Learned Factory stockpile data 4323 | -5/Upper Caves | Identified Mni. Smartbomb Launcher 4465 | -5/Upper Caves | Entered another Upper Caves area 4504 | -5/Upper Caves | Discovered new exit (range 12) 4528 | -5/Upper Caves | Entered Factory 4528 | -4/Factory | Evolved 2 slots: Power x1, Weapon x1 5286 | -4/Factory | Build established: Hacker-Ninja 5380 | -4/Factory | Lost 7 parts (3n3u1w) 5453 | -4/Factory | Discovered new exit (range 20) 5483 | -4/Factory | Entered Upper Caves 5519 | -4/Upper Caves | Encountered a Warlord checkpoint 5697 | -4/Upper Caves | Spotted B-86 Titan 5737 | -4/Upper Caves | Attracted the attention of an 0b10 checkpoint 5746 | -4/Upper Caves | Discovered new exit (range 12) 5765 | -4/Upper Caves | Entered another Upper Caves area 5765 | -4/Upper Caves | Discovered new exit (range 7) 5768 | -4/Upper Caves | Entered Research 5768 | -3/Research | Evolved 2 slots: Utility x2 5873 | -3/Research | Build established: Infiltrator-Ninja 5990 | -3/Research | Spotted B-86 Titan 6013 | -3/Research | Found Prototype Processor 6013 | -3/Research | Identified Spectral Analyzer 6037 | -3/Research | Core integrity fell below 50% 6067 | -3/Research | Lost 16 parts (4p5n5u2w) 6106 | -3/Research | Core integrity fell below 20% 6119 | -3/Research | Discovered new exit (range 2) 6124 | -3/Research | Entered Testing 6125 | -3/Testing | Maximum security lockdown engaged 6291 | -3/Testing | Spotted Striker 6305 | -3/Testing | Destroyed by P-80 Master with Gamma Rifle Last Messages --------------- 06300_ L-61 Swordsman unfolds itself. 06300_ B-74 Champion unfolds itself. 06300_ M-36 Artificer unfolds itself. 06300_ Gyrokinetic Inverter destroyed. 06301_ C-30 ARC bursts open, deploying its payload. 06301_ G-73 Enforcer unfolds itself. 06301_ G-67 Veteran unfolds itself. 06301_ L-61 Swordsman unfolds itself. 06301_ I-47 Archangel unfolds itself. 06301_ L-61 Swordsman knocked back. 06302_ Faulty Molecular Scythe destroyed. 06302_ System corrupted by crushing effect (+4). 06302_ Knocked back. 06304_ Imp. Thermal Defense Suite destroyed. 06304_ C-30 ARC bursts open, deploying its payload. 06304_ G-73 Enforcer unfolds itself. 06304_ L-61 Swordsman unfolds itself. 06304_ G-67 Veteran unfolds itself. 06304_ E-15 Imp unfolds itself. 06305_ P-80 Master resets L-61 Swordsman, system corruption cleaned. Map ----- +----------------------------------------------------+ | ?????????????????????????????????????????????????? | | ?????????????????????????????????????????????????? | | ?????????????????????????????????????????????????? | | ?????????????????????????????????????????????????? | | ?????????????????????????????????????????????????? | | ?????????????????????????????????????????????????? | | ?????????????????????????????????????????????????? | | ?????????????????????????????????????????????????? | | ?????????????????????????????????????????????????? | | ?????????????????????????????????????????????????? | | ?????????????????????????????????????????????????? | | ?????????????????????????????????????????????????? | | ?????????????????????????????????????????????????? | | ???????????????????########??????????????????????? | | ????????????????# ? #??????????????????????? | | ?????########??## """ """ #??????????????????????? | | ?????# """ #???+ """ """ #??????????????????????? | | ?????# """ #???# """ """ #??????????????????????? | | ?????# """ #???# p #??????????????Y???????? | | ???### #???# ##########????Y????????? | | ???# + #???# ? # !#?????Y???????? | | ???# ? != ???????= # #?????????????? | | ??## ###+###########;#;+### #?????????????? | | ### %! %gg l p lgb #?????????????? | | gg glg g K l/lm #?????????????? | | # / i ei ggbg l@#g" #?????????????? | | # #############+###" #?????????????? | | # #?????????? [+ #?????????????? | | # ########### # #?????????????? | | # # ## ##########?????????????? | | # !! # ## #??????????????????????? | | # !! # ## ! #??????????????????????? | | # ! # ## #??????????????????????? | | # # ## #??????????????????????? | | # " / ## #??????????????????????? | | # "%### ## !#??????????????????????? | | # "#?# ## #??????????????????????? | | # "#?# ## #??????????????????????? | | # "%#######+###########??????????????????????? | | " #??????????????????????????????? | | #####??????????????????????????? | | """ """ +??????????????????????????? | | """ """ !!! #####??????????????????????????? | | ?"" """ !!! #??????????????????????????????? | | ?? !! #??????????????????????????????? | | ??"""T"""" #??????????????????????????????? | | ????""""""" #??????????????????????????????? | | ???????####### #??????????????????????????????? | | ?????????????# #??????????????????????????????? | | ?????????????# #??????????????????????????????? | +----------------------------------------------------+ Best States ------------- Heat Dissipation 48 Energy Generation 31 Energy Capacity 450 Matter Stores 300 Matter Capacity 300 Sight Range 20 Robot Scan Range 15 Terrain Scan Range 20 Terrain Scan Density 110 ECM Strength 1 Jamming Range 12 Cloak Strength 5 Armor Coverage 300 Evasion (%) 73 Target Analysis 5 Defensive Hacking 20 Item Schematics ----------------- Gyrokinetic Inverter | -4/Factory | Scanalyzed Robot Schematics ------------------ None Fabricated ------------ Nothing Alien Tech Used ----------------- None Achievements -------------- Release The Drones! Challenges ------------ None Game ------ Seed HeartTargetingWand Manual? 0 Play Time 02:07:34 Cumulative 36.6 hours Start 2025.03.13 @ 21:49:52 End 2025.03.14 @ 22:09:27 Sessions 3 Manual Loads 0 Difficulty Rogue Special Mode None Game No. 32 Rogue 32 Adventurer 0 Explorer 0 Win Type - Total 0 Types 0/0/0/0/0/0/0/0/0 Lore% 12 Gallery% 37 Achievement% 26 Wizard Run 0 Options --------- Layout 0 ASCII 0 Keyboard 1 Movement Numpad Keybinds 0 Fullscreen 0 Font 16/SmallcapsGlow Map View 88x55 Zoom Use 0% Tactical HUD 1 Map Filters NONE Filters NONE Steam 1 RUN: d765f1cf-32fa-4835-9495-a1ee857b2357